[Event "*** Titled Tuesday Blitz"]
[Site "Chess.com"]
[Date "2021.02.16"]
[Round "4"]
[White "frankshar"]
[Black "PlotnikovPavel"]
[Result "1-0"]
[WhiteElo "2367"]
[BlackElo "2474"]
[TimeControl "180+1"]
[EndTime "10:43:54 PST"]
[Termination "frankshar won by checkmate"]

1. d4 {[%clk 0:03:00.9]} 1... Nf6 {[%clk 0:02:59.5]} 2. c4 {[%clk 0:03:00.6]}
2... g6 {[%clk 0:03:00.4]} 3. Nc3 {[%clk 0:03:00.7]} 3... Bg7 {[%clk 0:03:01.3]}
4. e4 {[%clk 0:03:01]} 4... O-O {[%clk 0:03:02.2]} 5. Nf3 {[%clk 0:03:00.9]}
5... d6 {[%clk 0:03:02.7]} 6. Be2 {[%clk 0:03:00.6]} 6... e5 {[%clk 0:03:03.2]}
7. dxe5 {[%clk 0:02:58.1]} 7... dxe5 {[%clk 0:03:03.7]} 8. O-O {[%clk
0:02:58.8]} 8... Nc6 {[%clk 0:03:03]} 9. Qxd8 {[%clk 0:02:54.9]} 9... Rxd8
{[%clk 0:03:02.7]} 10. Bg5 {[%clk 0:02:55]} 10... Re8 {[%clk 0:03:03.2]} 11.
Rfd1 {[%clk 0:02:49.1]} 11... Bg4 {[%clk 0:03:00.3]} 12. Nd5 {[%clk 0:02:34.5]}
12... Bxf3 {[%clk 0:02:47.8]} 13. Bxf3 {[%clk 0:02:30.1]} 13... Nxd5 {[%clk
0:02:42.8]} 14. cxd5 {[%clk 0:02:29.2]} 14... Nd4 {[%clk 0:02:43.1]} 15. Rac1
{[%clk 0:02:26]} 15... c6 {[%clk 0:02:38.8]} 16. dxc6 {[%clk 0:02:21]} 16...
bxc6 {[%clk 0:02:38.4]} 17. Bg4 {[%clk 0:02:10.9]} 17... h5 {[%clk 0:02:35.1]}
18. Bf3 {[%clk 0:02:09.7]} 18... Rab8 {[%clk 0:02:33]} 19. b3 {[%clk 0:02:09.2]}
19... f5 {[%clk 0:02:29.9]} 20. Rc4 {[%clk 0:02:02.3]} 20... Kf7 {[%clk
0:02:18.7]} 21. exf5 {[%clk 0:01:58]} 21... e4 {[%clk 0:02:10.4]} 22. Be3 {[%clk
0:01:11.4]} 22... exf3 {[%clk 0:01:13.3]} 23. Bxd4 {[%clk 0:01:08.9]} 23... Rbd8
{[%clk 0:01:11]} 24. fxg6+ {[%clk 0:01:03.1]} 24... Kxg6 {[%clk 0:01:11.9]} 25.
gxf3 {[%clk 0:00:41.6]} 25... c5 {[%clk 0:01:09.5]} 26. Rxc5 {[%clk 0:00:35]}
26... Bxd4 {[%clk 0:01:08.8]} 27. Rc6+ {[%clk 0:00:32.4]} 27... Kf5 {[%clk
0:01:08.4]} 28. Kf1 {[%clk 0:00:30.9]} 28... Kf4 {[%clk 0:01:06.2]} 29. Rc4
{[%clk 0:00:28.7]} 29... Ke5 {[%clk 0:00:58.5]} 30. f4+ {[%clk 0:00:28.3]} 30...
Ke4 {[%clk 0:00:55.8]} 31. Rcxd4+ {[%clk 0:00:26.7]} 31... Rxd4 {[%clk
0:00:54.5]} 32. Re1+ {[%clk 0:00:27.2]} 32... Kf3 {[%clk 0:00:55.1]} 33. Rxe8
{[%clk 0:00:27.2]} 33... Rd2 {[%clk 0:00:55.7]} 34. Re3+ {[%clk 0:00:26.1]}
34... Kxf4 {[%clk 0:00:55.3]} 35. a4 {[%clk 0:00:25.8]} 35... h4 {[%clk
0:00:54.3]} 36. Kg2 {[%clk 0:00:22.7]} 36... Rb2 {[%clk 0:00:51.9]} 37. Rc3
{[%clk 0:00:22.5]} 37... a5 {[%clk 0:00:49.9]} 38. Rc4+ {[%clk 0:00:20.2]} 38...
Kg5 {[%clk 0:00:49.5]} 39. Rc3 {[%clk 0:00:18.7]} 39... Kg4 {[%clk 0:00:48.6]}
40. h3+ {[%clk 0:00:18.7]} 40... Kf4 {[%clk 0:00:49]} 41. Rc4+ {[%clk
0:00:18.6]} 41... Kg5 {[%clk 0:00:49.9]} 42. Rc5+ {[%clk 0:00:17.3]} 42... Kf4
{[%clk 0:00:50.2]} 43. Rxa5 {[%clk 0:00:15.6]} 43... Rxb3 {[%clk 0:00:49.9]} 44.
Rh5 {[%clk 0:00:16.2]} 44... Ra3 {[%clk 0:00:45.6]} 45. Rxh4+ {[%clk 0:00:15.6]}
45... Kg5 {[%clk 0:00:46.5]} 46. Rg4+ {[%clk 0:00:15.8]} 46... Kh5 {[%clk
0:00:46.8]} 47. Rb4 {[%clk 0:00:15.6]} 47... Ra1 {[%clk 0:00:46.6]} 48. Kg3
{[%clk 0:00:14.9]} 48... Rg1+ {[%clk 0:00:44.5]} 49. Kf3 {[%clk 0:00:14.6]}
49... Ra1 {[%clk 0:00:45.4]} 50. Kg2 {[%clk 0:00:10.1]} 50... Ra3 {[%clk
0:00:44]} 51. f3 {[%clk 0:00:09.1]} 51... Ra1 {[%clk 0:00:40.5]} 52. Kg3 {[%clk
0:00:08.6]} 52... Rg1+ {[%clk 0:00:39.7]} 53. Kf2 {[%clk 0:00:07.6]} 53... Ra1
{[%clk 0:00:38]} 54. Rg4 {[%clk 0:00:06.5]} 54... Ra3 {[%clk 0:00:37.4]} 55. Kg3
{[%clk 0:00:05.5]} 55... Ra2 {[%clk 0:00:36.1]} 56. Rb4 {[%clk 0:00:04.1]} 56...
Ra1 {[%clk 0:00:36.2]} 57. Rb5+ {[%clk 0:00:04.4]} 57... Kg6 {[%clk 0:00:36.1]}
58. a5 {[%clk 0:00:05.2]} 58... Rg1+ {[%clk 0:00:36.7]} 59. Kf4 {[%clk
0:00:05.4]} 59... Ra1 {[%clk 0:00:37.6]} 60. h4 {[%clk 0:00:05.5]} 60... Ra4+
{[%clk 0:00:37.7]} 61. Kg3 {[%clk 0:00:05.3]} 61... Ra3 {[%clk 0:00:38.3]} 62.
Kg4 {[%clk 0:00:05.3]} 62... Ra1 {[%clk 0:00:37.7]} 63. Rb6+ {[%clk 0:00:05.1]}
63... Kg7 {[%clk 0:00:38]} 64. a6 {[%clk 0:00:05.5]} 64... Ra4+ {[%clk
0:00:37.7]} 65. f4 {[%clk 0:00:04]} 65... Ra1 {[%clk 0:00:38.6]} 66. Kf5 {[%clk
0:00:04.1]} 66... Ra5+ {[%clk 0:00:38.6]} 67. Ke6 {[%clk 0:00:04.3]} 67... Ra1
{[%clk 0:00:36.8]} 68. f5 {[%clk 0:00:04.1]} 68... Re1+ {[%clk 0:00:36.4]} 69.
Kd7 {[%clk 0:00:04.5]} 69... Rd1+ {[%clk 0:00:35.4]} 70. Rd6 {[%clk 0:00:04.7]}
70... Ra1 {[%clk 0:00:36.1]} 71. Kc7 {[%clk 0:00:03.9]} 71... Kf7 {[%clk
0:00:35.6]} 72. Re6 {[%clk 0:00:03.1]} 72... Rc1+ {[%clk 0:00:34.7]} 73. Kb7
{[%clk 0:00:03.2]} 73... Rb1+ {[%clk 0:00:34.6]} 74. Rb6 {[%clk 0:00:03.8]}
74... Re1 {[%clk 0:00:33.2]} 75. a7 {[%clk 0:00:04.1]} 75... Re7+ {[%clk
0:00:33.4]} 76. Ka6 {[%clk 0:00:04.7]} 76... Re8 {[%clk 0:00:33]} 77. Rb8 {[%clk
0:00:05]} 77... Re1 {[%clk 0:00:32]} 78. a8=Q {[%clk 0:00:05.3]} 78... Ra1+
{[%clk 0:00:32.9]} 79. Kb7 {[%clk 0:00:05.8]} 79... Rb1+ {[%clk 0:00:29.4]} 80.
Kc6 {[%clk 0:00:06]} 80... Rc1+ {[%clk 0:00:29.5]} 81. Kd5 {[%clk 0:00:06.3]}
81... Rc7 {[%clk 0:00:29.8]} 82. Rb7 {[%clk 0:00:05.7]} 82... Kf6 {[%clk
0:00:25.2]} 83. Rxc7 {[%clk 0:00:06]} 83... Kxf5 {[%clk 0:00:25.7]} 84. Qf8+
{[%clk 0:00:06]} 84... Kg4 {[%clk 0:00:25.7]} 85. Rg7+ {[%clk 0:00:06]} 85...
Kh3 {[%clk 0:00:26.6]} 86. Qf3+ {[%clk 0:00:05.7]} 86... Kxh4 {[%clk 0:00:26.8]}
87. Qg4# {[%clk 0:00:05.7]} 1-0

[Event "*** Titled Tuesday Blitz"]
[Site "Chess.com"]
[Date "2021.02.16"]
[Round "4"]
[White "GLeruste"]
[Black "Ladislav1969"]
[Result "1/2-1/2"]
[WhiteElo "2452"]
[BlackElo "2315"]
[TimeControl "180+1"]
[EndTime "10:44:00 PST"]
[Termination "Game drawn - insufficient material"]

1. d4 {[%clk 0:02:39.8]} 1... Nf6 {[%clk 0:02:59.6]} 2. Nc3 {[%clk 0:02:38.3]}
2... g6 {[%clk 0:03:00.5]} 3. e4 {[%clk 0:02:38.1]} 3... d6 {[%clk 0:02:54.7]}
4. Bg5 {[%clk 0:02:38.4]} 4... Bg7 {[%clk 0:02:54.2]} 5. e5 {[%clk 0:02:38.8]}
5... Nfd7 {[%clk 0:02:41.5]} 6. exd6 {[%clk 0:02:38.5]} 6... cxd6 {[%clk
0:02:41.4]} 7. Qd2 {[%clk 0:02:39.1]} 7... Nc6 {[%clk 0:02:36]} 8. Nf3 {[%clk
0:02:39.1]} 8... h6 {[%clk 0:02:31.3]} 9. Be3 {[%clk 0:02:38.4]} 9... Nf6 {[%clk
0:02:20.3]} 10. h3 {[%clk 0:02:37.9]} 10... d5 {[%clk 0:02:18]} 11. Be2 {[%clk
0:02:28.2]} 11... Bf5 {[%clk 0:02:15.2]} 12. O-O {[%clk 0:02:22.4]} 12... Ne4
{[%clk 0:02:15.1]} 13. Nxe4 {[%clk 0:02:21.5]} 13... Bxe4 {[%clk 0:02:15.3]} 14.
c3 {[%clk 0:02:11.7]} 14... Qd7 {[%clk 0:02:14.9]} 15. Rfe1 {[%clk 0:02:08.1]}
15... g5 {[%clk 0:02:07.7]} 16. Nh2 {[%clk 0:01:54.3]} 16... O-O {[%clk
0:02:03.4]} 17. f4 {[%clk 0:01:48.6]} 17... f6 {[%clk 0:01:54.6]} 18. b4 {[%clk
0:01:16]} 18... a6 {[%clk 0:01:53]} 19. a4 {[%clk 0:01:14.8]} 19... Kh7 {[%clk
0:01:49.7]} 20. b5 {[%clk 0:01:11.3]} 20... axb5 {[%clk 0:01:50.6]} 21. axb5
{[%clk 0:01:10.9]} 21... Rxa1 {[%clk 0:01:46.2]} 22. Rxa1 {[%clk 0:01:11.8]}
22... Nd8 {[%clk 0:01:44.1]} 23. Rf1 {[%clk 0:01:07.2]} 23... Nf7 {[%clk
0:01:36]} 24. Bd3 {[%clk 0:00:42.9]} 24... Nd6 {[%clk 0:01:35.4]} 25. fxg5
{[%clk 0:00:40.5]} 25... fxg5 {[%clk 0:01:18.8]} 26. Rxf8 {[%clk 0:00:39.5]}
26... Bxf8 {[%clk 0:01:19.1]} 27. Qe2 {[%clk 0:00:35.5]} 27... Qf5 {[%clk
0:01:16.5]} 28. Bxe4 {[%clk 0:00:34.4]} 28... Nxe4 {[%clk 0:01:15.2]} 29. c4
{[%clk 0:00:28.9]} 29... Ng3 {[%clk 0:01:02.9]} 30. Qd2 {[%clk 0:00:18.7]} 30...
dxc4 {[%clk 0:01:00.2]} 31. Bf2 {[%clk 0:00:14.8]} 31... Qb1+ {[%clk 0:00:55.1]}
32. Qe1 {[%clk 0:00:12]} 32... Qxe1+ {[%clk 0:00:53.7]} 33. Bxe1 {[%clk
0:00:12.9]} 33... Ne2+ {[%clk 0:00:53.4]} 34. Kf2 {[%clk 0:00:12.9]} 34... Nxd4
{[%clk 0:00:54.3]} 35. Ke3 {[%clk 0:00:13.5]} 35... Nxb5 {[%clk 0:00:54]} 36.
Nf3 {[%clk 0:00:13.1]} 36... Bg7 {[%clk 0:00:53.1]} 37. Bb4 {[%clk 0:00:10.8]}
37... Bf6 {[%clk 0:00:51.2]} 38. g4 {[%clk 0:00:10.8]} 38... Kg6 {[%clk
0:00:50.9]} 39. Ke4 {[%clk 0:00:10.7]} 39... Kf7 {[%clk 0:00:48.6]} 40. Ne1
{[%clk 0:00:11.1]} 40... Ke6 {[%clk 0:00:46.2]} 41. Nc2 {[%clk 0:00:11.5]} 41...
Nc3+ {[%clk 0:00:43.4]} 42. Bxc3 {[%clk 0:00:11.1]} 42... Bxc3 {[%clk
0:00:43.1]} 43. Na3 {[%clk 0:00:11.6]} 43... Be5 {[%clk 0:00:35.7]} 44. Nxc4
{[%clk 0:00:11.2]} 44... Bd6 {[%clk 0:00:35.7]} 45. Nb6 {[%clk 0:00:08.8]} 45...
Bc5 {[%clk 0:00:33.4]} 46. Na4 {[%clk 0:00:03.9]} 46... b6 {[%clk 0:00:30.6]}
47. Nc3 {[%clk 0:00:02.8]} 47... Bf2 {[%clk 0:00:24.4]} 48. Nb5 {[%clk
0:00:03.7]} 48... Kf6 {[%clk 0:00:21.4]} 49. Nc7 {[%clk 0:00:03.9]} 49... e6
{[%clk 0:00:19]} 50. Nb5 {[%clk 0:00:04]} 50... Bg3 {[%clk 0:00:16.7]} 51. Nc3
{[%clk 0:00:03.3]} 51... Be5 {[%clk 0:00:16]} 52. Nb5 {[%clk 0:00:04.2]} 52...
Bg3 {[%clk 0:00:15.8]} 53. Nc3 {[%clk 0:00:04.3]} 53... Kg6 {[%clk 0:00:15.6]}
54. Nb5 {[%clk 0:00:05.2]} 54... h5 {[%clk 0:00:15.9]} 55. Nd4 {[%clk
0:00:05.2]} 55... hxg4 {[%clk 0:00:15.1]} 56. hxg4 {[%clk 0:00:06.1]} 56... Bd6
{[%clk 0:00:14.7]} 57. Nxe6 {[%clk 0:00:05.8]} 57... b5 {[%clk 0:00:14.1]} 58.
Nd4 {[%clk 0:00:04.9]} 58... b4 {[%clk 0:00:14.2]} 59. Nb3 {[%clk 0:00:05.8]}
59... Be7 {[%clk 0:00:14]} 60. Nd4 {[%clk 0:00:06.1]} 60... Kf6 {[%clk
0:00:14.1]} 61. Nb3 {[%clk 0:00:07]} 61... Ke6 {[%clk 0:00:14.4]} 62. Nd4+
{[%clk 0:00:07.5]} 62... Kd6 {[%clk 0:00:14.6]} 63. Nb3 {[%clk 0:00:08.3]} 63...
Kc6 {[%clk 0:00:14.7]} 64. Kd4 {[%clk 0:00:08.5]} 64... Kb5 {[%clk 0:00:14.7]}
65. Kd5 {[%clk 0:00:08.7]} 65... Ka4 {[%clk 0:00:14.8]} 66. Kc4 {[%clk 0:00:09]}
66... Bf6 {[%clk 0:00:14]} 67. Nc5+ {[%clk 0:00:09.4]} 67... Ka3 {[%clk
0:00:14.4]} 68. Nb3 {[%clk 0:00:10.3]} 68... Be7 {[%clk 0:00:13.9]} 69. Nd4
{[%clk 0:00:10.5]} 69... Bd8 {[%clk 0:00:13.8]} 70. Nb3 {[%clk 0:00:11.4]} 70...
Bb6 {[%clk 0:00:13.6]} 71. Nd2 {[%clk 0:00:11.1]} 71... Ba7 {[%clk 0:00:13.7]}
72. Nb3 {[%clk 0:00:12]} 72... Be3 {[%clk 0:00:13.8]} 73. Na5 {[%clk 0:00:12.3]}
73... Ka4 {[%clk 0:00:14.1]} 74. Nb3 {[%clk 0:00:13.2]} 74... Ka3 {[%clk
0:00:14.2]} 75. Na5 {[%clk 0:00:13.3]} 75... Bd2 {[%clk 0:00:13.8]} 76. Nb3
{[%clk 0:00:14.2]} 76... Bc3 {[%clk 0:00:13.4]} 77. Nc5 {[%clk 0:00:14.1]} 77...
Kb2 {[%clk 0:00:12.6]} 78. Nb3 {[%clk 0:00:15]} 78... Kc2 {[%clk 0:00:12.6]} 79.
Nc5 {[%clk 0:00:15.4]} 79... Bd2 {[%clk 0:00:10]} 80. Nb3 {[%clk 0:00:14.6]}
80... Kd1 {[%clk 0:00:09]} 81. Nd4 {[%clk 0:00:14.2]} 81... Ke1 {[%clk 0:00:07]}
82. Kd3 {[%clk 0:00:14.5]} 82... Bc3 {[%clk 0:00:06.4]} 83. Nf3+ {[%clk
0:00:14.2]} 83... Kf2 {[%clk 0:00:06.4]} 84. Nxg5 {[%clk 0:00:13.2]} 84... Kg3
{[%clk 0:00:07.3]} 85. Ne4+ {[%clk 0:00:13.4]} 85... Kxg4 {[%clk 0:00:07.6]} 86.
Nxc3 {[%clk 0:00:14]} 86... b3 {[%clk 0:00:06.8]} 87. Nd1 {[%clk 0:00:13.7]}
87... b2 {[%clk 0:00:07.2]} 88. Nxb2 {[%clk 0:00:13.5]} 1/2-1/2

[Event "*** Titled Tuesday Blitz"]
[Site "Chess.com"]
[Date "2021.02.16"]
[Round "4"]
[White "jd001"]
[Black "Srisshhhtea"]
[Result "0-1"]
[WhiteElo "2276"]
[BlackElo "2444"]
[TimeControl "180+1"]
[EndTime "10:44:02 PST"]
[Termination "Srisshhhtea won by resignation"]

1. d4 {[%clk 0:03:00.9]} 1... d5 {[%clk 0:02:58.5]} 2. c4 {[%clk 0:03:00.4]}
2... e6 {[%clk 0:02:58.4]} 3. Nc3 {[%clk 0:02:59.8]} 3... Be7 {[%clk 0:02:58]}
4. Nf3 {[%clk 0:02:59.1]} 4... Nf6 {[%clk 0:02:58.3]} 5. Bg5 {[%clk 0:02:58.7]}
5... h6 {[%clk 0:02:57.3]} 6. Bh4 {[%clk 0:02:58]} 6... O-O {[%clk 0:02:55.8]}
7. e3 {[%clk 0:02:58.1]} 7... b6 {[%clk 0:02:48.9]} 8. cxd5 {[%clk 0:02:57.4]}
8... Nxd5 {[%clk 0:02:47]} 9. Bxe7 {[%clk 0:02:56.2]} 9... Qxe7 {[%clk
0:02:47.9]} 10. Nxd5 {[%clk 0:02:55.4]} 10... exd5 {[%clk 0:02:48.8]} 11. Bd3
{[%clk 0:02:52.3]} 11... c5 {[%clk 0:02:46.8]} 12. dxc5 {[%clk 0:02:50.9]} 12...
bxc5 {[%clk 0:02:47.7]} 13. O-O {[%clk 0:02:50.3]} 13... Be6 {[%clk 0:02:47.8]}
14. Rc1 {[%clk 0:02:43.2]} 14... Nc6 {[%clk 0:02:45.2]} 15. e4 {[%clk
0:02:33.2]} 15... Rfd8 {[%clk 0:02:29.7]} 16. exd5 {[%clk 0:02:26.9]} 16... Bxd5
{[%clk 0:02:24.3]} 17. Qe2 {[%clk 0:02:18.4]} 17... Qxe2 {[%clk 0:01:55.6]} 18.
Bxe2 {[%clk 0:02:18]} 18... Nd4 {[%clk 0:01:55.9]} 19. Nxd4 {[%clk 0:02:11]}
19... cxd4 {[%clk 0:01:56.8]} 20. b3 {[%clk 0:02:02.2]} 20... a5 {[%clk
0:01:51.8]} 21. Rfd1 {[%clk 0:02:01.1]} 21... Be6 {[%clk 0:01:49.3]} 22. Bc4
{[%clk 0:01:59.3]} 22... Bg4 {[%clk 0:01:42.6]} 23. f3 {[%clk 0:01:58.4]} 23...
Bf5 {[%clk 0:01:40.2]} 24. Kf2 {[%clk 0:01:53.6]} 24... Rd6 {[%clk 0:01:40.2]}
25. Rd2 {[%clk 0:01:51.9]} 25... Rad8 {[%clk 0:01:34.3]} 26. Re1 {[%clk
0:01:50.8]} 26... Kf8 {[%clk 0:01:33.7]} 27. Re5 {[%clk 0:01:49.8]} 27... Bg6
{[%clk 0:01:19.9]} 28. Rxa5 {[%clk 0:01:49.5]} 28... R8d7 {[%clk 0:01:15.4]} 29.
a4 {[%clk 0:01:37]} 29... Ke7 {[%clk 0:01:03.3]} 30. g4 {[%clk 0:01:35.3]} 30...
Kd8 {[%clk 0:01:03.3]} 31. Re5 {[%clk 0:01:31.8]} 31... Kc7 {[%clk 0:01:02.5]}
32. a5 {[%clk 0:01:30.3]} 32... Kb7 {[%clk 0:01:01.5]} 33. a6+ {[%clk
0:01:30.1]} 33... Ka7 {[%clk 0:00:59.5]} 34. h4 {[%clk 0:01:27.1]} 34... f6
{[%clk 0:00:51.4]} 35. Rc5 {[%clk 0:01:26.8]} 35... Bf7 {[%clk 0:00:47.5]} 36.
b4 {[%clk 0:01:18.9]} 36... Bxc4 {[%clk 0:00:45.1]} 37. Rxc4 {[%clk 0:01:18.8]}
37... Kxa6 {[%clk 0:00:45.8]} 38. Rc5 {[%clk 0:00:57.6]} 38... Kb6 {[%clk
0:00:41.7]} 39. Ke2 {[%clk 0:00:56.1]} 39... Re6+ {[%clk 0:00:38]} 40. Kd1
{[%clk 0:00:52.4]} 40... Re3 {[%clk 0:00:37.7]} 41. f4 {[%clk 0:00:51]} 41...
Re4 {[%clk 0:00:37]} 42. g5 {[%clk 0:00:51.3]} 42... Rxf4 {[%clk 0:00:35.7]} 43.
gxh6 {[%clk 0:00:51.6]} 43... gxh6 {[%clk 0:00:36.2]} 44. h5 {[%clk 0:00:51.1]}
44... d3 {[%clk 0:00:35]} 45. Kc1 {[%clk 0:00:51]} 45... Rxb4 {[%clk 0:00:32.9]}
46. Rf5 {[%clk 0:00:49.7]} 46... Rc4+ {[%clk 0:00:31]} 47. Kb2 {[%clk
0:00:48.2]} 47... Rd6 {[%clk 0:00:28.8]} 48. Kb3 {[%clk 0:00:46.3]} 48... Rc5
{[%clk 0:00:26.1]} 49. Rf3 {[%clk 0:00:44.1]} 49... Rxh5 {[%clk 0:00:22.9]} 50.
Rdxd3 {[%clk 0:00:42.3]} 50... Rxd3+ {[%clk 0:00:22.6]} 51. Rxd3 {[%clk
0:00:42.3]} 51... Kc6 {[%clk 0:00:23.2]} 52. Kc4 {[%clk 0:00:42]} 52... Rh4+
{[%clk 0:00:22.9]} 53. Kc3 {[%clk 0:00:41.4]} 53... f5 {[%clk 0:00:22.3]} 54.
Kd2 {[%clk 0:00:41.5]} 54... Re4 {[%clk 0:00:21.1]} 55. Rh3 {[%clk 0:00:39.9]}
55... Re6 {[%clk 0:00:20.9]} 56. Rh5 {[%clk 0:00:39.8]} 56... Rf6 {[%clk
0:00:20.8]} 57. Ke3 {[%clk 0:00:40.2]} 57... Kd5 {[%clk 0:00:20.8]} 58. Kf4
{[%clk 0:00:40.1]} 58... Ke6 {[%clk 0:00:21.5]} 59. Rh2 {[%clk 0:00:39.3]} 59...
Rg6 {[%clk 0:00:21.8]} 60. Re2+ {[%clk 0:00:38.8]} 60... Kf6 {[%clk 0:00:22.4]}
61. Rd2 {[%clk 0:00:38.8]} 61... Rg4+ {[%clk 0:00:22.9]} 62. Kf3 {[%clk
0:00:39.5]} 62... Kg5 {[%clk 0:00:23.3]} 63. Rd5 {[%clk 0:00:39.1]} 63... Ra4
{[%clk 0:00:21.8]} 64. Rd8 {[%clk 0:00:38.1]} 64... Ra3+ {[%clk 0:00:21.9]} 65.
Kg2 {[%clk 0:00:38.1]} 65... h5 {[%clk 0:00:22.2]} 66. Rg8+ {[%clk 0:00:37.6]}
66... Kf4 {[%clk 0:00:22.5]} 67. Rh8 {[%clk 0:00:37.9]} 67... Kg4 {[%clk
0:00:21.3]} 68. Rg8+ {[%clk 0:00:38]} 68... Kh4 {[%clk 0:00:21.7]} 69. Rf8
{[%clk 0:00:38]} 69... Rg3+ {[%clk 0:00:18.6]} 70. Kh2 {[%clk 0:00:37.2]} 70...
Rg5 {[%clk 0:00:18.5]} 71. Rf7 {[%clk 0:00:36.5]} 71... Kg4 {[%clk 0:00:18.8]}
72. Rh7 {[%clk 0:00:35.6]} 72... h4 {[%clk 0:00:18.8]} 73. Kg2 {[%clk
0:00:36.1]} 73... f4 {[%clk 0:00:18.5]} 74. Rf7 {[%clk 0:00:35.9]} 74... h3+
{[%clk 0:00:18.3]} 75. Kh2 {[%clk 0:00:35.8]} 75... Kf3 {[%clk 0:00:17.6]} 76.
Rh7 {[%clk 0:00:34.3]} 76... Rg3 {[%clk 0:00:14.6]} 77. Re7 {[%clk 0:00:31.6]}
77... Kf2 {[%clk 0:00:13.8]} 78. Re6 {[%clk 0:00:31.9]} 78... f3 {[%clk
0:00:12.9]} 79. Rc6 {[%clk 0:00:31.7]} 79... Rg2+ {[%clk 0:00:12.7]} 80. Kxh3
{[%clk 0:00:31.4]} 80... Rg7 {[%clk 0:00:10.3]} 81. Rc3 {[%clk 0:00:28.7]} 81...
Rh7+ {[%clk 0:00:07.5]} 82. Kg4 {[%clk 0:00:28.4]} 82... Rg7+ {[%clk 0:00:08.2]}
83. Kf4 {[%clk 0:00:28.6]} 83... Rf7+ {[%clk 0:00:07.3]} 84. Kg4 {[%clk
0:00:28.8]} 84... Kg2 {[%clk 0:00:07.8]} 85. Kh4 {[%clk 0:00:27.3]} 85... f2
{[%clk 0:00:08.2]} 86. Rc2 {[%clk 0:00:26.5]} 86... Kg1 {[%clk 0:00:06.8]} 87.
Kh3 {[%clk 0:00:25.7]} 87... f1=Q+ {[%clk 0:00:06]} 0-1